bitfinex-derivatives/quotes_ETHF0:USTF0_20251012
["timestamp","ask_amount","ask_price","bid_price","bid_amount"]
[1760290591790,2.69384017,4127.8,4127.7,5.72582]
[1760290591984,2.69384017,4127.8,4127.7,5.2901]
[1760290592190,2.69384017,4127.8,4127.7,3.2078]
[1760290593496,2.69384017,4127.8,4127.7,5.2022]
[1760290593696,0.00291855,4127.8,4127.7,5.2022]
[1760290594386,3.2078,4129.1,4129.0,0.43559]
[1760290594593,3.2078,4129.1,4129.0,2.42999]
[1760290594895,5.99052739,4129.1,4129.0,2.42999]
[1760290595294,5.99052739,4129.1,4129.0,3.26649]
[1760290595488,6.42785763,4129.1,4129.0,0.0024662]
[1760290595695,9.63607018,4129.1,4129.0,0.0024662]
[1760290596797,9.20049018,4129.1,4129.0,0.0024662]
[1760290597095,9.11269018,4129.1,4129.0,0.0024662]
[1760290597899,9.20049018,4129.1,4129.0,0.0024662]
[1760290599403,9.11269018,4129.1,4129.0,1.9968662]
[1760290599702,0.00175024,4129.1,4129.0,2.8333662]
[1760290600600,3.2078,4130.2,4130.1,1.9944]
[1760290600792,3.2078,4130.7,4130.1,1.08866]
[1760290600994,3.2078,4130.7,4130.6,1.9944]
[1760290601396,5.43682949,4130.7,4130.6,1.9944]
[1760290601597,0.43543,4130.5,4130.1,1.9944]
[1760290601796,0.43549,4129.9,4129.6,1.9944]
[1760290602194,2.63710677,4129.8,4129.7,2.42991]
[1760290602404,3.21077569,4130.7,4129.7,1.9944]
[1760290602604,2.72702656,4130.3,4130.2,1.9944]
[1760290602811,3.07252677,4130.6,4130.1,3.2078]
[1760290603105,0.43542,4130.6,4130.2,1.9944]
[1760290603304,2.72702656,4130.5,4130.4,1.99]
[1760290604905,2.72702656,4130.5,4130.1,3.2078]
[1760290604906,2.57837019,4130.6,4130.5,1.99]
[1760290605107,3.21077569,4130.7,4130.5,1.99]
[1760290605308,3.21077569,4130.7,4130.5,0.8539]
[1760290605497,3.21077569,4130.7,4130.6,1.99]
[1760290605702,0.0612,4130.2,4130.1,3.2078]
[1760290605898,0.0612,4130.2,4129.1,0.43558]
[1760290605899,8.07894986,4130.2,4129.1,0.43558]
[1760290606111,0.0612,4130.0,4129.0,2.8289662]
[1760290606317,0.4355,4129.8,4129.1,0.43557]
[1760290606606,13.92246164,4130.2,4129.0,2.8289662]
[1760290606607,5.89740532,4129.7,4129.0,2.8289662]
[1760290606904,3.2078,4129.7,4129.0,2.8289662]
[1760290607107,3.2078,4129.7,4129.5,0.8539]
[1760290607304,0.00297569,4130.7,4130.4,0.43544]
[1760290607509,0.00297569,4130.7,4130.6,1.99]
[1760290608213,0.00297569,4130.7,4130.5,1.28932]
[1760290608214,3.2078,4131.9,4131.5,0.8539]
[1760290608404,5.32977672,4132.9,4132.3,0.43524]
[1760290608601,2.80802236,4132.5,4132.4,5.63302]
[1760290608804,5.32977672,4132.9,4132.5,0.8539]
[1760290609105,4.80994986,4133.9,4133.1,1.99]
[1760290609315,4.81270857,4133.9,4133.1,2.42708875]
[1760290609513,2.52134414,4133.8,4133.5,0.8539]
[1760290609710,0.00275871,4133.9,4133.6,1.99]
[1760290610108,2.52134414,4133.8,4133.6,1.99]
[1760290610508,2.52134414,4133.8,4133.5,0.8539]
[1760290610712,2.52134414,4133.8,4133.6,1.99]
[1760290611508,2.52134414,4133.8,4133.5,0.8539]
[1760290611914,2.52134414,4133.8,4133.6,1.99]
[1760290612311,11.23187947,4133.7,4133.1,0.00193875]
[1760290612513,11.66697947,4133.7,4133.1,0.00193875]
[1760290612716,2.60079016,4133.6,4133.5,0.8539]
[1760290612911,0.00275871,4133.9,4133.5,3.279]
[1760290613115,2.60079016,4133.8,4133.7,1.99]
[1760290613313,0.00275871,4133.9,4133.7,2.42508]
[1760290613616,2.73468774,4133.8,4133.5,1.28901]
[1760290614013,2.73468774,4133.8,4133.5,0.8539]
[1760290614210,2.73468774,4133.8,4133.6,2.4251]
[1760290614418,0.00275871,4133.9,4133.8,2.42508]
[1760290614621,0.00275871,4133.9,4133.8,1.99]
[1760290614812,2.60468361,4133.9,4133.8,1.99]
[1760290615015,2.60468361,4133.9,4133.6,1.99]
[1760290615714,2.60468361,4133.9,4133.1,0.00193875]
[1760290615715,6.35950353,4133.8,4133.1,0.00193875]
[1760290615922,3.2078,4133.3,4133.2,1.99]
[1760290616220,0.49634,4133.2,4133.1,0.00193875]
[1760290616417,4.80994986,4132.7,4132.1,1.99]
[1760290616915,6.09434789,4132.6,4132.1,1.99]
[1760290617117,5.65913789,4132.6,4132.5,2.8439]
[1760290617309,4.80994986,4133.3,4132.5,2.84657895]
[1760290617310,0.43515,4133.2,4132.5,2.84657895]
[1760290617807,5.66566766,4133.2,4133.1,5.1978]
[1760290618011,0.00275871,4133.9,4133.8,1.99]
[1760290619109,2.76661507,4133.9,4133.8,1.99]
[1760290619321,0.00275871,4133.9,4133.8,1.99]
[1760290619509,0.00275871,4133.9,4133.2,3.2078]
[1760290619510,0.4351,4133.7,4133.2,3.2078]
[1760290619711,5.81581168,4133.9,4133.0,0.8539]
[1760290619913,3.2078,4133.3,4132.7,3.2078]
[1760290620116,3.2078,4133.3,4132.6,1.99]
[1760290620313,2.60525297,4133.2,4132.8,1.99]
[1760290620516,5.89771986,4133.6,4132.8,1.99]
[1760290620816,2.8059582,4133.5,4132.8,1.99]
[1760290621017,0.00275871,4133.9,4133.6,1.99]
[1760290621518,0.00275871,4133.9,4133.5,0.8539]
[1760290622014,0.00275871,4133.9,4133.1,1.99]
[1760290622015,2.79109697,4133.8,4133.1,1.99]
[1760290622216,3.22618697,4133.8,4133.1,1.99]
[1760290622413,3.22618697,4133.8,4132.9,3.2078]
[1760290622414,3.17804931,4133.7,4132.9,3.2078]
[1760290622821,0.43514,4133.3,4133.0,1.9804]
[1760290623018,2.57702322,4133.6,4133.5,0.8047]
[1760290623313,0.00275871,4133.9,4133.5,0.8047]
[1760290623514,5.24504986,4133.7,4133.6,1.9804]
[1760290623718,0.43517,4133.0,4132.8,1.9804]
[1760290624126,0.43521,4132.6,4132.5,1.98307895]
[1760290624520,2.65822975,4132.6,4132.5,0.00267895]
[1760290624815,3.2078,4134.0,4133.3,1.9804]
[1760290625219,2.65822975,4133.8,4133.2,3.64294]
[1760290625416,4.80994986,4133.6,4133.3,1.9804]
[1760290626018,0.43515,4133.2,4132.5,0.80737895]
[1760290626220,3.2078,4133.0,4132.6,1.9804]
[1760290626509,2.64897578,4132.9,4132.5,0.80737895]
[1760290626713,2.64897578,4132.9,4132.8,1.9804]
[1760290626916,2.64897578,4133.0,4132.6,1.9804]
[1760290627118,4.80994986,4133.0,4132.6,1.9804]
[1760290627519,7.45892564,4133.0,4132.5,0.80737895]
[1760290627823,7.45892564,4133.0,4132.6,1.9804]
[1760290628017,3.2078,4133.7,4132.8,0.43518]
[1760290628215,3.2078,4133.0,4132.6,1.9804]
[1760290628416,2.1518,4132.6,4132.5,0.00267895]
[1760290628618,6.96174986,4132.6,4132.5,0.00267895]
[1760290628818,7.92987575,4132.6,4132.5,0.00267895]
[1760290629020,12.84022202,4132.6,4132.5,0.00267895]
[1760290629224,12.84022202,4132.6,4131.9,1.9804]
[1760290629225,0.43526,4132.1,4131.9,1.9804]
[1760290629418,3.2078,4132.2,4132.0,1.9804]
[1760290629824,2.69356387,4132.1,4131.6,3.2078]
[1760290630025,2.69356387,4132.1,4131.7,1.9804]
[1760290630424,3.2078,4132.2,4132.0,2.7851]
[1760290630617,2.5696601,4132.1,4131.8,1.9804]
[1760290630930,2.5696601,4132.1,4131.7,0.00292073]
[1760290631332,3.2078,4133.0,4132.1,1.9804]
[1760290631520,3.2078,4133.0,4132.4,1.9804]
[1760290631826,4.80994986,4133.2,4132.8,5.1882]
[1760290631827,2.71514487,4132.9,4132.8,5.1882]
[1760290632134,3.2078,4133.7,4133.6,1.9804]
[1760290634027,3.2078,4133.7,4133.0,2.7851]
[1760290634028,5.81107667,4133.7,4133.0,2.7851]
[1760290634224,4.80994986,4133.5,4133.0,0.8047]
[1760290634420,4.80994986,4133.5,4133.1,1.9804]
[1760290634722,2.61749026,4133.4,4133.2,1.9804]
[1760290635031,3.2078,4133.7,4133.6,1.9804]
[1760290635431,5.82529026,4133.7,4133.6,1.9804]
[1760290635827,0.00275871,4133.9,4133.7,0.43508]
[1760290636020,0.00275871,4133.9,4133.8,1.9804]
[1760290636328,0.00275871,4133.9,4133.5,0.8047]
[1760290636329,7.54907737,4133.9,4133.5,0.8047]
[1760290636631,7.54907737,4133.9,4133.5,1.9804]
[1760290636825,7.54907737,4133.9,4132.8,3.2078]
[1760290637025,7.54907737,4133.9,4133.1,1.9804]
[1760290637220,4.80994986,4133.2,4132.9,1.9804]
[1760290637419,3.2078,4133.1,4132.3,1.9804]
[1760290637623,5.65463134,4133.1,4132.6,1.9804]
[1760290637825,2.54054959,4133.1,4132.5,0.8047]
[1760290638020,2.54054959,4133.1,4132.6,1.9804]
[1760290638222,2.54054959,4133.2,4132.6,1.9804]
[1760290638422,5.24508986,4133.3,4132.6,1.9804]
[1760290638631,0.43515,4133.2,4132.6,1.9804]
[1760290638830,3.00849849,4133.2,4132.6,1.9804]
[1760290639223,3.00849849,4133.2,4131.9,0.43528]
[1760290639224,4.80994986,4132.7,4131.9,0.43528]
[1760290639531,5.79195051,4132.6,4131.9,0.43528]
[1760290639726,0.43522,4132.5,4131.8,1.9804]
[1760290639932,5.79195051,4132.6,4131.8,1.9804]
[1760290640132,0.43525,4132.3,4131.7,3.21072073]
[1760290640336,0.43525,4132.3,4131.8,1.9804]
[1760290640630,0.43523,4132.4,4131.8,1.9804]
[1760290640827,4.80994986,4132.7,4131.8,1.9804]
[1760290640828,5.24515986,4132.7,4131.8,1.9804]
[1760290641133,2.67872992,4132.5,4131.8,1.9804]
[1760290641331,0.43524,4132.3,4131.8,1.9804]
[1760290641526,4.80994986,4132.1,4131.9,1.9804]
[1760290641729,4.80994986,4132.1,4131.7,3.21072073]
[1760290641931,4.80994986,4132.1,4132.0,1.9804]
[1760290642430,0.43517,4133.0,4132.1,1.9804]
[1760290642638,8.01774986,4133.7,4132.6,1.9804]
[1760290642834,0.43512,4133.4,4132.6,2.41561]
[1760290643133,2.32353147,4133.3,4132.6,2.41561]
[1760290643335,2.32353147,4133.3,4132.8,1.9804]
[1760290643534,8.01774986,4133.7,4132.8,1.9804]
[1760290643727,0.43514,4133.3,4132.6,1.9804]
[1760290643927,2.1518,4132.5,4131.8,1.9804]
[1760290644135,4.80994986,4132.1,4131.7,0.00292073]
[1760290644330,0.43529,4131.8,4131.7,0.00292073]
[1760290644536,3.64308,4131.9,4131.7,0.00292073]
[1760290644833,2.65429744,4131.8,4131.7,1.98332073]
[1760290645038,0.43535,4131.3,4130.6,3.2078]
[1760290645331,2.65429744,4131.2,4130.7,1.9804]
[1760290645728,4.80994986,4131.6,4131.2,1.9804]
[1760290645929,0.43534,4131.4,4131.2,0.00191417]
[1760290646125,0.43534,4131.4,4131.3,1.9804]
[1760290646434,0.43534,4131.4,4131.2,0.00191417]
[1760290646435,2.66911292,4131.3,4131.2,0.00191417]
[1760290646628,5.3596,4131.3,4131.2,0.00191417]
[1760290646826,8.48291073,4131.3,4131.2,0.00191417]
[1760290647132,8.48291073,4131.3,4130.2,3.2078]
[1760290647133,0.4354,4130.8,4130.2,3.2078]
[1760290647436,2.56840536,4130.7,4130.2,3.2078]
[1760290647637,2.56840536,4130.7,4130.3,1.9804]
[1760290647838,2.56840536,4130.7,4130.2,3.2078]
[1760290648032,2.56840536,4130.7,4130.3,1.9804]
[1760290648228,2.57082754,4130.7,4130.3,1.9804]
[1760290648430,2.57082754,4130.7,4130.2,3.21047534]
[1760290648633,0.00242218,4130.7,4130.6,1.9804]
[1760290649032,3.2078,4132.0,4130.6,1.9804]
[1760290649239,3.2078,4132.0,4131.1,1.9804]
[1760290649439,1.08876,4129.9,4129.3,3.84742668]
[1760290649734,0.43561,4128.9,4128.2,1.9804]
[1760290650036,3.2078,4128.3,4128.2,1.9804]
[1760290650440,3.21044259,4128.3,4128.2,1.98220546]
[1760290654140,3.2078,4128.9,4128.6,0.43562]
[1760290654341,3.2078,4128.9,4128.7,2.1577]
[1760290654537,3.2078,4129.4,4129.1,2.1577]
[1760290654736,3.2078,4129.4,4129.1,2.59327]
[1760290655032,5.88702125,4130.1,4129.0,0.8634]
[1760290655033,3.2078,4130.0,4129.6,2.1577]
[1760290655239,3.2078,4130.0,4129.5,0.8634]
[1760290655240,3.21087885,4130.0,4129.5,0.8634]
[1760290655440,5.99273935,4130.0,4129.6,2.1577]
[1760290655736,5.99273935,4130.0,4129.0,0.8634]
[1760290655737,0.43555,4129.4,4129.0,0.8634]
[1760290655939,3.2078,4129.3,4129.1,2.1577]
[1760290656338,3.2078,4129.9,4129.6,2.1577]
[1760290658647,3.2078,4129.9,4129.5,0.8634]
[1760290658834,3.2078,4129.9,4129.6,2.1577]
[1760290659035,3.2078,4129.9,4129.5,0.8634]
[1760290659237,2.7361841,4129.8,4129.5,0.8634]
[1760290659544,3.2078,4129.9,4129.6,2.1577]
[1760290659844,0.43552,4129.7,4129.5,0.8634]
[1760290660045,0.43552,4129.7,4129.6,2.1577]
[1760290660446,3.6433,4129.9,4129.6,2.1577]
[1760290660743,3.2078,4129.9,4129.6,2.1577]
[1760290661044,0.01,4129.7,4129.6,2.1577]
[1760290661253,0.00307885,4130.0,4129.6,2.1577]
[1760290661946,0.00307885,4130.0,4129.5,0.8634]
[1760290661947,3.2078,4130.4,4130.0,0.8634]
[1760290662142,3.2078,4130.4,4130.3,2.1577]
[1760290662538,9.09478125,4130.4,4130.3,2.1577]
[1760290662742,0.43545,4130.3,4130.0,0.8634]
[1760290662944,0.43546,4130.2,4130.0,0.8634]
[1760290663144,6.19619787,4130.2,4130.0,0.8634]
[1760290663339,1.08869,4130.1,4129.1,2.0814]
[1760290663545,3.2078,4129.2,4129.1,2.0814]
[1760290664251,8.98101992,4129.2,4129.1,2.0814]
[1760290664542,8.98101992,4129.2,4128.2,3.20960546]
[1760290664543,0.43558,4129.1,4129.0,2.9448]
[1760290664741,3.2078,4129.2,4129.1,2.0814]
[1760290665344,5.92212118,4129.2,4129.1,2.0814]
[1760290666346,0.43561,4128.8,4128.6,2.0814]
[1760290666554,3.2078,4128.7,4128.6,2.0814]
[1760290667552,8.65934125,4128.7,4128.6,2.0814]
[1760290668053,3.2078,4128.7,4128.6,2.0814]
[1760290668249,9.09490125,4129.3,4129.0,0.8635]
[1760290668452,9.09490125,4129.3,4129.1,2.0814]
[1760290669150,9.09490125,4129.3,4129.0,0.8635]
[1760290669151,3.20950615,4130.3,4129.5,0.8635]
[1760290669342,3.20950615,4130.3,4130.1,2.0814]
[1760290670546,3.20950615,4130.3,4130.0,0.8635]
[1760290670753,0.00170615,4130.3,4130.1,2.0814]
[1760290672346,2.69918238,4130.2,4130.1,2.0814]
[1760290672953,3.20950615,4130.3,4130.1,2.0814]
[1760290673547,1.08825,4131.8,4130.0,0.8635]
[1760290673548,3.2078,4131.3,4131.0,0.8635]
[1760290673748,0.43537,4131.1,4130.5,0.8635]
[1760290674046,5.45154125,4131.0,4130.5,0.8635]
[1760290674245,5.45154125,4131.0,4130.9,2.0814]
[1760290674646,0.00215204,4131.0,4130.9,2.0814]
[1760290676350,5.45369329,4131.0,4130.9,2.0814]
[1760290676959,5.45369329,4131.0,4130.9,2.51679]
[1760290676960,0.00215204,4131.0,4130.9,2.51679]
[1760290677151,0.00215204,4131.0,4130.9,2.0814]
[1760290682061,0.00215204,4131.0,4130.5,0.8635]
[1760290682062,5.45369329,4131.0,4130.5,0.8635]
[1760290682357,0.43539,4130.9,4130.6,2.0814]
[1760290682558,0.43539,4130.9,4130.6,2.1087]
[1760290682755,5.88907329,4131.0,4130.5,0.8635]
[1760290682959,0.43539,4130.9,4130.5,0.8635]
[1760290683158,5.45369329,4131.0,4130.5,0.8635]
[1760290683159,0.00215204,4131.0,4130.9,2.1087]
[1760290683349,3.2078,4131.8,4131.6,2.1087]
[1760290683852,2.54635167,4131.7,4131.6,2.1087]
[1760290684050,3.2078,4131.8,4131.6,2.1087]
[1760290684252,3.20986458,4131.8,4131.7,2.1087]
[1760290684854,0.00206458,4131.8,4131.7,2.1087]
[1760290688357,0.4353,4131.7,4131.6,0.00270445]
[1760290688557,2.2222,4131.7,4131.6,0.00270445]
[1760290688755,3.17062209,4131.7,4131.6,2.11140445]
[1760290689158,3.17062209,4131.7,4131.6,0.00270445]
[1760290689554,3.20986458,4131.8,4131.7,2.1087]
[1760290690160,3.64515458,4131.8,4131.7,2.1087]
[1760290690459,3.20986458,4131.8,4131.7,2.1087]
[1760290692073,3.2078,4132.9,4132.7,0.4352]
[1760290692260,3.2078,4132.9,4132.8,2.1087]
[1760290692561,2.36785778,4135.1,4133.2,0.43514]
[1760290692562,3.2078,4133.5,4133.2,0.43514]
[1760290692861,5.45154125,4133.9,4133.3,2.54383]
[1760290693067,5.4543237,4133.9,4133.3,2.54383]
[1760290693262,0.30191607,4133.8,4133.4,2.1087]
[1760290693458,0.30191607,4133.8,4133.3,0.43513]
[1760290693459,0.73700607,4133.8,4133.6,2.1087]
[1760290693659,0.73700607,4133.8,4133.0,0.8026]
[1760290693660,0.4351,4133.6,4133.0,0.8026]
[1760290693964,2.7278294,4133.5,4133.0,0.8026]
[1760290694365,2.7278294,4133.6,4133.0,1.23776]
[1760290694560,3.6429,4133.7,4133.0,1.23776]
[1760290694755,3.2078,4133.7,4133.0,2.9113]
[1760290695057,3.2078,4133.1,4133.0,2.1087]
[1760290695267,3.2078,4133.1,4132.5,4.0104]
[1760290695268,3.2078,4133.1,4132.5,3.34651]
[1760290695467,2.55215511,4133.1,4133.0,2.9113]
[1760290695665,0.43512,4133.5,4133.0,0.8026]
[1760290695967,3.02469783,4133.5,4133.0,0.8026]
[1760290696168,0.43513,4133.4,4133.1,2.1087]
[1760290696374,0.43513,4133.4,4133.0,0.8026]
[1760290696375,3.2078,4133.1,4133.0,2.9113]
[1760290697162,3.2078,4133.6,4133.1,2.54385]
[1760290697361,3.2078,4133.6,4133.1,2.1087]
[1760290697759,3.2078,4133.6,4133.0,1.23776]
[1760290697959,3.2078,4133.6,4133.1,2.1087]
[1760290698164,3.6429,4133.6,4133.1,2.1087]
[1760290698465,3.6429,4133.6,4133.0,1.23776]
[1760290698667,3.6429,4133.6,4133.1,2.1087]
[1760290698867,3.2078,4133.6,4133.1,2.1087]
[1760290699067,3.2078,4133.6,4133.5,0.8026]
[1760290699267,3.2078,4133.6,4133.5,2.9113]
[1760290699570,3.2078,4133.6,4133.5,2.1087]
[1760290699762,0.43513,4133.4,4133.0,0.8026]
[1760290699962,0.43513,4133.4,4133.1,2.1087]
[1760290700169,3.2078,4133.6,4133.1,2.1087]
[1760290700170,2.6564245,4133.3,4133.2,2.1087]
[1760290700469,2.6564245,4133.4,4133.2,2.1087]
[1760290700663,2.6564245,4133.4,4132.6,2.1087]
[1760290700865,3.2078,4133.6,4133.1,2.1087]
[1760290701170,3.2078,4133.6,4133.2,0.43514]
[1760290701371,3.2078,4133.6,4133.5,2.9113]
[1760290702465,3.2078,4133.6,4133.5,2.1087]
[1760290702666,5.89298642,4133.6,4133.5,2.1087]
[1760290702866,0.43512,4133.4,4133.1,0.43515]
[1760290703065,5.89298642,4133.6,4133.1,0.43515]
[1760290703264,2.78885243,4133.3,4133.2,2.1087]
[1760290703567,3.22396243,4133.5,4133.3,2.1087]
[1760290703773,0.43511,4133.5,4133.3,2.1087]
[1760290703963,0.43511,4133.5,4132.8,0.43518]
[1760290703964,2.762019,4133.4,4132.8,0.43518]
[1760290704263,0.43518,4132.9,4132.6,2.54391]
[1760290704463,3.64296,4133.1,4132.7,0.4352]
[1760290704666,2.762019,4132.8,4132.7,0.4352]
[1760290704969,4.77445301,4133.0,4132.6,2.1087]
[1760290705166,1.789,4132.9,4132.6,2.1087]
[1760290705469,4.33928301,4132.9,4132.6,2.54391]
[1760290705669,3.18675753,4132.8,4132.4,3.2078]
[1760290705974,3.18675753,4132.8,4131.0,0.8026]
[1760290705975,0.43528,4131.9,4131.6,2.11140445]
[1760290706167,0.43529,4131.8,4131.6,0.00270445]
[1760290706369,1.789,4131.7,4131.6,0.00270445]
[1760290706669,4.49505912,4131.7,4131.6,0.00270445]
[1760290707465,2.70605912,4131.7,4131.6,2.11140445]
[1760290707667,8.65934125,4132.5,4131.8,2.1087]
[1760290708173,0.43524,4132.3,4131.9,2.1087]
[1760290708370,0.43525,4132.2,4131.7,0.4353]
[1760290708670,0.43525,4132.2,4131.6,0.00270445]
[1760290708671,0.43529,4131.9,4131.6,0.00270445]
[1760290708968,2.61385654,4131.8,4131.6,2.11140445]
[1760290709164,4.83815654,4131.8,4131.6,0.00270445]
[1760290709565,1.789,4131.7,4131.6,0.00270445]
[1760290710072,4.31802331,4131.7,4131.6,0.00270445]
[1760290710464,2.52902331,4131.7,4131.6,2.11140445]
[1760290710664,4.79608274,4131.9,4131.6,2.11140445]
[1760290710665,4.79608274,4131.9,4131.7,2.1087]
[1760290710863,3.2078,4132.0,4131.9,2.1087]
[1760290711267,5.93054588,4132.0,4131.6,0.00270445]
[1760290711469,0.4353,4131.8,4131.6,0.00270445]
[1760290711863,2.58651226,4131.7,4131.6,0.00270445]
[1760290712069,0.43528,4131.9,4131.7,2.1087]
[1760290712265,3.2078,4132.0,4131.6,0.00270445]
[1760290712474,3.2078,4132.0,4131.9,2.1087]
[1760290712671,4.79608274,4132.6,4132.1,2.0481]
[1760290712867,3.2078,4132.7,4132.5,0.865]
[1760290713064,4.79608274,4133.4,4132.6,2.0481]
[1760290713267,3.2078,4133.3,4133.1,2.0481]
[1760290713472,3.2078,4133.3,4132.5,0.865]
[1760290713473,1.7176,4133.1,4132.7,0.43519]
[1760290713660,4.79608274,4132.8,4132.5,0.865]
[1760290713864,4.79608274,4132.8,4132.4,0.43523]
[1760290714074,2.48084254,4132.7,4132.5,2.0481]
[1760290714273,2.91604254,4132.7,4132.5,2.0481]
[1760290714469,2.91604254,4132.7,4131.6,3.21050445]
[1760290714470,4.19844254,4132.7,4132.0,3.34837]
[1760290714765,4.79608274,4132.2,4132.1,2.0481]
[1760290714972,0.43526,4132.1,4131.6,3.21050445]
[1760290715172,1.7176,4132.0,4131.6,5.25860445]
[1760290715372,4.48140412,4132.0,4131.7,2.0481]
[1760290715671,0.43528,4131.9,4131.7,2.0481]
[1760290715971,4.3231545,4131.8,4131.6,3.21050445]
[1760290716274,2.6055545,4131.8,4131.7,2.0481]
[1760290716575,2.6055545,4132.0,4131.7,2.0481]
[1760290716870,2.6055545,4132.0,4131.6,3.64581445]
[1760290716871,3.2078,4132.3,4132.2,0.43525]
[1760290717074,1.08779,4133.6,4132.3,0.43524]
[1760290717075,0.4352,4132.7,4132.3,0.43524]
[1760290717271,0.4352,4132.7,4132.4,2.0481]
[1760290717467,2.53179556,4132.6,4132.4,2.0481]
[1760290717781,2.96700556,4132.6,4132.2,2.0481]
[1760290718072,0.43521,4132.6,4132.2,2.0481]
[1760290718273,0.43521,4132.6,4132.3,0.43524]
[1760290718462,2.60141182,4132.5,4132.4,2.0481]
[1760290718667,3.2078,4133.3,4133.1,0.43515]
[1760290718873,3.2078,4133.3,4133.2,2.0481]
[1760290719578,0.00278245,4133.9,4133.8,2.0481]
[1760290719778,0.00278245,4133.9,4133.8,5.2559]
[1760290721174,0.00278245,4133.9,4133.8,2.0481]
[1760290722580,7.40038121,4133.9,4133.8,2.0481]
[1760290724372,4.79886519,4133.9,4133.8,2.0481]
[1760290725579,7.55055614,4133.9,4133.8,2.0481]
[1760290725980,0.00278245,4133.9,4133.8,2.0481]
[1760290728177,9.71666083,4133.9,4133.6,1.952]
[1760290728371,9.71666083,4133.9,4133.6,2.3871]
[1760290728681,9.28159083,4133.9,4133.6,2.3871]
[1760290728882,9.28159083,4133.9,4133.7,0.43509]
[1760290729072,7.59239083,4133.9,4133.7,2.38709]
[1760290729479,7.59239083,4133.9,4133.8,1.952]
[1760290730181,7.59239083,4133.9,4133.7,0.43509]
[1760290730381,7.59239083,4133.9,4133.7,2.38709]
[1760290730772,8.02746083,4133.9,4133.5,0.4351]
[1760290730978,1.6892,4133.8,4133.5,0.4351]
[1760290731183,1.6892,4133.8,4133.6,0.4351]
[1760290731381,2.68121818,4133.7,4133.6,2.3871]
[1760290731777,4.79886519,4133.9,4133.2,3.2078]
[1760290731778,1.6892,4133.6,4133.4,0.43512]
[1760290731978,4.79886519,4133.9,4133.7,0.43509]
[1760290732180,4.79886519,4133.9,4133.7,2.38709]
[1760290732381,2.61236813,4133.8,4133.7,2.38709]
[1760290732581,2.61236813,4133.8,4133.7,1.952]
[1760290732885,2.61236813,4133.8,4133.6,0.4351]
[1760290733081,2.61236813,4133.8,4133.6,2.3871]
[1760290733685,2.61236813,4133.8,4133.7,0.43509]
[1760290733986,2.61236813,4133.8,4133.7,2.38709]
[1760290734181,0.00278245,4133.9,4133.8,2.38708]
[1760290739694,2.52320026,4133.9,4133.8,2.38708]
[1760290740395,1.6892,4133.8,4133.7,0.43509]
[1760290740796,1.6892,4133.8,4133.7,2.38709]
[1760290740797,2.78773759,4133.8,4133.7,2.38709]
[1760290741603,0.00278245,4133.9,4133.8,0.43508]
[1760290741800,0.00278245,4133.9,4133.8,2.38708]
[1760290743700,1.647,4133.8,4133.6,2.0773]
[1760290743997,2.74395707,4133.7,4133.6,2.5124]
[1760290744699,4.39095707,4133.7,4133.2,3.2078]
[1760290744901,4.79608274,4133.4,4133.3,2.51243]
[1760290745096,0.00278245,4133.9,4133.8,0.43508]
[1760290745299,0.00278245,4133.9,4133.8,2.51238]
[1760290745604,2.56566546,4133.9,4133.6,2.0773]
[1760290745803,0.00278245,4133.9,4133.8,2.51238]
[1760290746502,4.79608274,4135.1,4133.8,2.51238]
[1760290746503,3.2078,4135.1,4135.0,0.43495]
[1760290746702,3.2078,4135.1,4135.0,3.30715]
[1760290747002,10.6463964,4135.1,4134.5,2.8722]
[1760290747202,10.6463964,4135.1,4135.0,2.8722]
[1760290747597,10.64887485,4135.1,4135.0,2.8746494]
[1760290748408,12.29587485,4135.1,4135.0,0.0024494]
[1760290748603,12.29587485,4135.1,4133.7,3.2078]
[1760290748604,0.43499,4134.6,4134.2,5.0587751]
[1760290748907,6.44308274,4134.4,4134.3,0.43502]
[1760290749304,9.15650209,4134.4,4134.3,0.43502]
[1760290749504,2.71341935,4134.4,4134.3,2.51232]
[1760290749701,3.2078,4134.5,4134.3,2.51423042]
[1760290749897,3.21027845,4135.1,4135.0,2.0773]
[1760290750099,3.21027845,4135.1,4135.0,2.8722]
[1760290750304,5.81659128,4135.1,4135.0,2.8722]
[1760290750704,5.81659128,4135.1,4135.0,2.0773]
[1760290752004,5.81659128,4135.1,4135.0,2.8722]
[1760290752307,5.81659128,4135.1,4134.3,0.00191042]
[1760290752509,1.647,4134.5,4134.3,0.43693042]
[1760290752809,6.44308274,4134.6,4134.5,0.435]
[1760290753308,9.02505559,4134.6,4134.5,0.435]
[1760290754215,2.58197285,4134.6,4134.5,3.3072]
[1760290754607,2.08196,4134.9,4134.6,2.0773]
[1760290754815,2.59974362,4134.8,4134.6,2.0773]
[1760290755310,3.21027845,4135.1,4134.6,2.0773]
[1760290755717,2.58628474,4135.0,4134.5,0.7949]
[1760290755907,2.58628474,4135.0,4134.6,2.0773]
[1760290756616,2.58628474,4135.0,4134.5,0.7949]
[1760290757313,2.58628474,4135.0,4134.6,2.0773]
[1760290757514,2.58628474,4135.0,4134.5,0.7949]
[1760290757815,2.58628474,4135.0,4134.6,2.0773]
[1760290758516,2.58628474,4135.0,4134.5,0.7949]
[1760290758717,2.58628474,4135.0,4134.6,2.0773]
[1760290759712,2.58628474,4135.0,4134.5,0.7949]
[1760290759911,2.58628474,4135.0,4134.6,2.0773]
[1760290760119,2.58628474,4135.0,4134.9,0.43496]
[1760290760312,2.58628474,4135.0,4134.9,2.51226]
[1760290760615,0.00247845,4135.1,4134.6,1.08749]
[1760290760616,0.00247845,4135.1,4135.0,3.30715]
[1760290765311,3.2078,4136.1,4136.0,1.22974]
[1760290765505,3.2078,4136.1,4136.0,3.30704]
[1760290765807,5.96598768,4136.1,4136.0,3.30704]
[1760290766005,0.43484,4136.0,4135.5,0.7949]
[1760290766208,3.2078,4135.6,4135.5,2.8722]
[1760290766414,3.21051411,4135.6,4135.5,2.8722]
[1760290766618,3.21051411,4135.6,4135.5,3.3071]
[1760290767411,3.21051411,4135.6,4135.5,2.0773]